fUST/lending_fUST_20260120
["ID","MTS","AMOUNT","RATE_DAILY","PERIOD"]
[402813687,1768918244244,-10000.0,0.00015114,2]
[402813688,1768918244253,-2447.61,0.00015114,2]
[402813689,1768918244263,-275.44,0.0001529,7]
[402813690,1768918244272,-2312.83697232,0.00015304,2]
[402813691,1768918244282,-210.72696101,0.00015304,2]
[402813692,1768918244291,-478.75725327,0.00015304,2]
[402813693,1768918244301,-2000.0,0.00015342,2]
[402813694,1768918244311,-2000.0,0.00015342,2]
[402813695,1768918244320,-154.16387455,0.00015425,30]
[402813696,1768918244329,-629.0,0.00015455,2]
[402813697,1768918244338,-1368.0,0.00015455,2]
[402813698,1768918244347,-2148.0,0.00015455,2]
[402813699,1768918244356,-715.0,0.00015455,2]
[402813700,1768918244365,-178.0,0.00015455,2]
[402813701,1768918244375,-417.0,0.00015455,2]
[402813702,1768918244384,-3145.712218,0.00015455,7]
[402813703,1768918244394,-2500.0,0.00015464,2]
[402813704,1768918244403,-2500.0,0.00015464,2]
[402813705,1768918244412,-972.13320587,0.00015464,2]
[402813706,1768918244422,-779.0,0.000155,2]
[402813707,1768918244433,-154.16387455,0.00015507,30]
[402813708,1768918244443,-192.21405,0.00015507,7]
[402813709,1768918244453,-7819.16468405,0.00015545,2]
[402813710,1768918244462,-7864.280545,0.00015577,7]
[402813711,1768918244472,-162.380719,0.00015577,2]
[402813712,1768918244481,-154.16387455,0.00015589,30]
[402813713,1768918244491,-154.16387455,0.00015699,30]
[402813714,1768918244501,-254.23799675,0.00015726,3]
[402813715,1768918244511,-160.49,0.00015748,2]
[402813716,1768918244521,-154.16387455,0.00015781,30]
[402813717,1768918244531,-2398.4119403,0.00015852,2]
[402813718,1768918244542,-496.47127164,0.00015852,2]
[402813719,1768918244552,-154.16387455,0.00015863,30]
[402813720,1768918244565,-2508.10450039,0.0001589,2]
[402813721,1768918244575,-2500.0,0.0001589,2]
[402813722,1768918244584,-154.16387455,0.00015973,30]
[402813723,1768918244594,-38000.0,0.00015977,3]
[402813724,1768918244604,-21615.08960312,0.00015977,3]
[402813725,1768918244613,-3000.0,0.00016,2]
[402813726,1768918244623,-3000.0,0.0001601,2]
[402813727,1768918244635,-3011.40916233,0.00016012,2]
[402813728,1768918244645,-2893.65388347,0.00016012,2]
[402813729,1768918244655,-336.0,0.00016017,2]
[402813730,1768918244664,-3000.0,0.0001602,2]
[402813731,1768918244673,-3000.0,0.0001603,2]
[402813732,1768918244683,-3000.0,0.0001604,2]
[402813733,1768918244693,-3000.0,0.0001605,2]
[402813734,1768918244703,-154.16387455,0.00016055,30]
[402813735,1768918244713,-3000.0,0.0001606,2]
[402813736,1768918244722,-288.321074,0.0001606,7]
[402813737,1768918244732,-3000.0,0.0001607,2]
[402813738,1768918244741,-3000.0,0.0001608,2]
[402813739,1768918244751,-3000.0,0.0001609,2]
[402813740,1768918244760,-19660.701363,0.0001609,7]
[402813741,1768918244770,-3000.0,0.000161,2]
[402813742,1768918244779,-3000.0,0.0001611,2]
[402813743,1768918244788,-720.802687,0.0001611,7]
[402813744,1768918244798,-336.0,0.00016117,2]
[402813745,1768918244808,-3000.0,0.0001612,2]
[402813746,1768918244817,-3000.0,0.0001613,2]
[402813747,1768918244827,-154.16387455,0.00016137,30]
[402813748,1768918244836,-3000.0,0.0001614,2]
[402813749,1768918244846,-336.0,0.00016143,2]
[402813750,1768918244856,-3000.0,0.0001615,2]
[402813751,1768918244865,-3000.0,0.0001616,2]
[402813752,1768918244875,-3000.0,0.0001617,2]
[402813753,1768918244885,-3000.0,0.0001618,2]
[402813754,1768918244895,-3000.0,0.0001619,2]
[402813755,1768918244905,-3000.0,0.000162,2]
[402813756,1768918244916,-336.0,0.000162,2]
[402813757,1768918244926,-49151.753407,0.000162,7]
[402813758,1768918244936,-3000.0,0.0001621,2]
[402813759,1768918244946,-3000.0,0.0001622,2]
[402813760,1768918244955,-3000.0,0.0001623,2]
[402813761,1768918244965,-9903.14752857,0.00016231,2]
[402813762,1768918244975,-3000.0,0.0001624,2]
[402813763,1768918244986,-154.16387455,0.00016247,30]
[402813764,1768918244997,-3000.0,0.0001625,2]
[402813765,1768918245007,-1802.006716,0.0001625,7]
[402813766,1768918245018,-3000.0,0.0001626,2]
[402813767,1768918245028,-3000.0,0.0001627,2]
[402813768,1768918245038,-3000.0,0.0001628,2]
[402813769,1768918245048,-3000.0,0.0001629,2]
[402813770,1768918245058,-500.0,0.0001629,2]
[402813771,1768918245069,-500.0,0.0001629,2]
[402813772,1768918245078,-3000.0,0.000163,2]
[402813773,1768918245089,-3000.0,0.0001631,2]
[402813774,1768918245098,-3000.0,0.0001632,2]
[402813775,1768918245109,-336.0,0.00016323,2]
[402813776,1768918245119,-3000.0,0.0001633,2]
[402813777,1768918245130,-122879.383519,0.0001633,7]
[402813778,1768918245139,-336.0,0.00016331,2]
[402813779,1768918245150,-3000.0,0.0001634,2]
[402813780,1768918245160,-3000.0,0.0001635,2]
[402813781,1768918245170,-3000.0,0.0001636,2]
[402813782,1768918245180,-3000.0,0.0001637,2]
[402813783,1768918245189,-3000.0,0.0001638,2]
[402813784,1768918245200,-3000.0,0.0001639,2]
[402813785,1768918245210,-2487.15318209,0.000164,2]
[402813786,1768918245220,-514.84070869,0.000164,2]
[402813787,1768918245232,-3000.0,0.000164,2]
[402813788,1768918245242,-3000.0,0.0001641,2]
[402813789,1768918245253,-3000.0,0.0001642,2]
[402813790,1768918245262,-3000.0,0.0001643,2]
[402813793,1768918245411,-475.2,0.00016438,2]
[402813794,1768918245422,-500.0,0.00016438,2]
[402813795,1768918245432,-614.52056835,0.00016438,2]
[402813796,1768918245441,-157.01421,0.00016438,2]
[402813798,1768918245451,-932.254814,0.00016438,2]
[402813800,1768918245460,-932.254814,0.00016438,2]
[402813801,1768918245470,-932.254814,0.00016438,2]
[402813802,1768918245480,-932.254814,0.00016438,2]
[402813803,1768918245490,-1061.592791,0.00016438,2]
[402813804,1768918245500,-1061.592791,0.00016438,2]
[402813806,1768918245509,-1061.592791,0.00016438,2]
[402813808,1768918245518,-1061.592791,0.00016438,2]
[402813809,1768918245528,-151.0,0.00016438,2]
[402813811,1768918245537,-253.569981,0.00016438,2]
[402813813,1768918245546,-151.0,0.00016438,2]
[402813814,1768918245558,-151.0,0.00016438,2]
[402813815,1768918245567,-150.19748249,0.00016438,2]
[402813816,1768918245577,-151.0,0.00016438,2]
[402813817,1768918245586,-151.0,0.00016438,2]
[402813818,1768918245596,-151.0,0.00016438,2]
[402813819,1768918245606,-269.922067,0.00016438,2]
[402813820,1768918245615,-151.0,0.00016438,2]
[402813822,1768918245624,-269.922067,0.00016438,2]
[402813823,1768918245636,-269.922067,0.00016438,2]
[402813825,1768918245645,-269.922067,0.00016438,2]
[402813827,1768918245654,-836.146172,0.00016438,2]
[402813828,1768918245664,-836.146172,0.00016438,2]
[402813829,1768918245674,-836.146172,0.00016438,2]
[402813830,1768918245683,-836.146172,0.00016438,2]
[402813831,1768918245693,-277.673685,0.00016438,2]
[402813832,1768918245703,-277.673685,0.00016438,2]
[402813833,1768918245712,-277.673685,0.00016438,2]
[402813834,1768918245723,-277.673685,0.00016438,2]
[402813835,1768918245740,-151.142217,0.00016438,2]
[402813836,1768918245753,-152.878896,0.00016438,2]
[402813837,1768918245763,-151.0,0.00016438,2]
[402813838,1768918245773,-151.0,0.00016438,2]
[402813839,1768918245783,-151.0,0.00016438,2]
[402813840,1768918245793,-151.0,0.00016438,2]
[402813841,1768918245803,-151.000008,0.00016438,2]
[402813842,1768918245814,-151.0,0.00016438,2]
[402813843,1768918245824,-151.0,0.00016438,2]
[402813844,1768918245835,-3000.0,0.00016438,2]
[402813845,1768918245845,-3000.0,0.0001644,2]
[402813846,1768918245856,-4505.01679,0.0001644,7]
[402813847,1768918245866,-187.710619,0.0001644,2]
[402813848,1768918245876,-187.710619,0.0001644,2]
[402813849,1768918245886,-187.710619,0.0001644,2]
[402813850,1768918245896,-187.710619,0.0001644,2]
[402813851,1768918245906,-151.0,0.0001644,2]
[402813852,1768918245916,-151.0,0.0001644,2]
[402813853,1768918245925,-151.0,0.0001644,2]
[402813854,1768918245935,-151.0,0.0001644,2]
[402813855,1768918245945,-242.300073,0.0001644,2]
[402813856,1768918245956,-151.0,0.0001644,2]
[402813857,1768918245966,-151.542111,0.0001644,2]
[402813858,1768918245975,-151.542111,0.0001644,2]
[402813859,1768918245985,-151.542111,0.0001644,2]
[402813860,1768918245996,-151.542111,0.0001644,2]
[402813861,1768918246006,-648.072103,0.0001644,2]
[402813862,1768918246016,-648.072103,0.0001644,2]
[402813863,1768918246026,-648.072103,0.0001644,2]
[402813864,1768918246035,-648.072103,0.0001644,2]
[402813865,1768918246046,-3000.0,0.0001645,2]
[402813866,1768918246056,-3000.0,0.0001646,2]
[402813867,1768918246066,-3000.0,0.0001647,2]
[402813868,1768918246076,-200.0,0.00016473,2]
[402813869,1768918246087,-3000.0,0.0001648,2]
[402813870,1768918246097,-3000.0,0.0001649,2]
[402813871,1768918246107,-527.07352959,0.00016498,2]
[402813872,1768918246118,-3000.0,0.000165,2]
[402813873,1768918246128,-3000.0,0.0001651,2]
[402813874,1768918246138,-350.356,0.0001651,2]
[402813875,1768918246148,-336.0,0.00016516,2]
[402813876,1768918246158,-3000.0,0.0001652,2]
[402813877,1768918246169,-151.0,0.0001652,2]
[402813878,1768918246178,-151.0,0.0001652,2]
[402813879,1768918246188,-151.0,0.0001652,2]
[402813880,1768918246199,-158.327138,0.0001652,2]
[402813881,1768918246208,-151.0,0.0001652,2]
[402813882,1768918246218,-151.0,0.0001652,2]
[402813883,1768918246229,-162.138539,0.0001652,2]
[402813884,1768918246239,-151.0,0.0001652,2]
[402813885,1768918246249,-151.0,0.0001652,2]
[402813886,1768918246259,-151.0,0.0001652,2]
[402813887,1768918246269,-151.0,0.0001652,2]
[402813888,1768918246279,-151.0,0.0001652,2]
[402813889,1768918246288,-151.0,0.0001652,2]
[402813890,1768918246298,-155.948363,0.0001652,2]
[402813891,1768918246308,-155.948363,0.0001652,2]
[402813892,1768918246317,-155.948363,0.0001652,2]
[402813893,1768918246327,-155.948363,0.0001652,2]
[402813894,1768918246336,-3000.0,0.0001653,2]
[402813895,1768918246345,-336.0,0.00016531,2]
[402813896,1768918246355,-3000.0,0.0001654,2]
[402813897,1768918246364,-4636.202438,0.0001655,2]
[402813898,1768918246374,-151.0,0.0001655,2]
[402813899,1768918246384,-151.0,0.0001655,2]
[402813900,1768918246394,-151.0,0.0001655,2]
[402813901,1768918246403,-151.0,0.0001655,2]
[402813902,1768918246412,-151.0,0.0001655,2]
[402813903,1768918246422,-573.268169,0.0001655,2]
[402813904,1768918246432,-573.268169,0.0001655,2]
[402813905,1768918246441,-573.268169,0.0001655,2]
[402813906,1768918246451,-573.268169,0.0001655,2]
[402813907,1768918246461,-2000.0,0.0001658,7]
[402813908,1768918246471,-336.0,0.00016616,2]
[402813909,1768918246480,-336.0,0.00016636,2]
[402813910,1768918246489,-336.0,0.00016644,2]
[402813911,1768918246499,-336.0,0.00016645,2]
[402813912,1768918246508,-475.2,0.00016762,2]
[402813913,1768918246518,-336.0,0.00016817,2]
[402813914,1768918246527,-225.0,0.00016822,3]
[402813915,1768918246538,-336.0,0.0001685,2]
[402813916,1768918246548,-8553.7343938,0.00016854,2]
[402813917,1768918246561,-336.0,0.000169,2]
[402813918,1768918246570,-151.0,0.00016947,2]
[402813919,1768918246580,-2579.17784983,0.00016948,2]
[402813920,1768918246590,-533.88981491,0.00016948,2]
[402813921,1768918246600,-159.17,0.00016968,2]
[402813922,1768918246609,-336.0,0.00016976,2]
[402813923,1768918246619,-160.0,0.00016978,3]
[402813924,1768918246631,-3500.0,0.00016986,2]
[402813925,1768918246641,-336.0,0.00016995,2]
[402813926,1768918246651,-336.0,0.00016999,2]
[402813927,1768918246661,-200.0,0.00017,2]
[402813928,1768918246670,-200.0,0.00017,2]
[402813929,1768918246680,-200.0,0.00017,2]
[402813930,1768918246689,-200.0,0.00017,2]
[402813931,1768918246698,-200.0,0.00017,2]
[402813932,1768918246708,-200.0,0.00017,2]
[402813933,1768918246717,-200.0,0.00017,2]
[402813934,1768918246726,-200.0,0.00017,2]
[402813935,1768918246736,-210.09720851,0.00017,2]
[402813936,1768918246746,-475.2,0.00017086,2]
[402813937,1768918246755,-336.0,0.00017097,2]
[402813938,1768918246765,-336.0,0.00017098,2]
[402813939,1768918246775,-2000.0,0.00017251,7]
[402813940,1768918246785,-159.15,0.00017295,2]
[402813941,1768918246795,-336.0,0.00017318,2]
[402813942,1768918246805,-475.2,0.00017409,2]
[402813943,1768918246815,-5000.0,0.00017412,2]
[402813944,1768918246826,-336.0,0.00017464,2]
[402813945,1768918246835,-2674.60743027,0.00017496,2]
[402813946,1768918246845,-553.64373807,0.00017496,2]
[402813947,1768918246855,-336.0,0.00017499,2]
[402813948,1768918246865,-336.0,0.0001751,2]
[402813949,1768918246876,-336.0,0.00017511,2]
[402813950,1768918246886,-4000.0,0.00017534,2]
[402813951,1768918246896,-612.89467807,0.0001758,5]
[402813952,1768918246905,-475.2,0.00017733,2]
[402813953,1768918246915,-1310.713424,0.00017773,7]
[402813954,1768918246925,-22557.23743193,0.000178,3]
[402813955,1768918246935,-9903.14752856,0.000178,2]
[402813956,1768918246945,-150.04453344,0.00017808,2]
[402813957,1768918246955,-481.28806043,0.00017842,2]
[402813958,1768918246964,-227.0,0.00017918,3]
[402813959,1768918246974,-2000.0,0.00017922,7]
[402813960,1768918246983,-194.23050275,0.00018,2]
[402813961,1768918246993,-605.03501726,0.00018,2]
[402813962,1768918247003,-1693.30826216,0.00018,2]
[402813963,1768918247013,-224.11164834,0.00018,2]
[402813964,1768918247027,-1361.70772757,0.00018,2]
[402813965,1768918247037,-939.12074511,0.00018,2]
[402813966,1768918247047,-1763.20966732,0.00018,2]
[402813967,1768918247056,-1222.87218492,0.00018,2]
[402813968,1768918247070,-1000.0,0.00018,2]
[402813969,1768918247079,-2773.56790519,0.00018044,2]
[402813970,1768918247089,-574.12855637,0.00018044,2]
[402813971,1768918247099,-475.2,0.00018057,2]
[402813972,1768918247108,-159.17,0.00018073,2]
[402813973,1768918247118,-4500.0,0.00018082,2]
[402813974,1768918247129,-605.03501726,0.000182,2]
[402813975,1768918247138,-1693.30826216,0.000182,2]
[402813976,1768918247148,-224.11164834,0.000182,2]
[402813977,1768918247157,-1361.70772757,0.000182,2]
[402813978,1768918247167,-939.12074511,0.000182,2]
[402813979,1768918247176,-1763.20966732,0.000182,2]
[402813980,1768918247186,-1222.87218492,0.000182,2]
[402813981,1768918247195,-475.2,0.00018381,2]
[402813982,1768918247205,-7819.16468405,0.00018396,2]
[402813983,1768918247214,-605.03501726,0.000184,2]
[402813984,1768918247224,-1693.30826216,0.000184,2]
[402813985,1768918247234,-1361.70772757,0.000184,2]
[402813986,1768918247247,-939.12074511,0.000184,2]
[402813987,1768918247257,-1763.20966732,0.000184,2]
[402813988,1768918247266,-1222.87218492,0.000184,2]
[402813989,1768918247275,-629.0,0.00018455,2]
[402813990,1768918247285,-1366.0,0.00018455,2]
[402813991,1768918247295,-715.0,0.00018455,2]
[402813992,1768918247305,-178.0,0.00018455,2]
[402813993,1768918247314,-417.0,0.00018455,2]
[402813994,1768918247325,-556.426707,0.00018493,2]
[402813995,1768918247336,-582.23238734,0.00018498,2]
[402813996,1768918247345,-605.03501726,0.000185,2]
[402813997,1768918247355,-1693.30826216,0.000185,2]
[402813998,1768918247365,-1361.70772757,0.000185,2]
[402813999,1768918247375,-939.12074511,0.000185,2]
[402814000,1768918247384,-1763.20966732,0.000185,2]
[402814001,1768918247393,-1222.87218492,0.000185,2]
[402814002,1768918247403,-200.0,0.00018571,2]
[402814003,1768918247412,-2876.18991768,0.00018592,2]
[402814004,1768918247422,-487.3288612,0.00018592,2]
[402814005,1768918247432,-2000.0,0.00018593,7]
[402814006,1768918247441,-3000000.00000001,0.0001862,2]
[402814007,1768918247451,-5000.0,0.0001863,2]
[402814008,1768918247460,-605.03501726,0.000187,2]
[402814009,1768918247470,-1693.30826216,0.000187,2]
[402814010,1768918247479,-1361.70772757,0.000187,2]
[402814011,1768918247489,-939.12074511,0.000187,2]
[402814012,1768918247498,-1763.20966732,0.000187,2]
[402814013,1768918247507,-1222.87218492,0.000187,2]
[402814014,1768918247516,-475.2,0.00018705,2]
[402814015,1768918247526,-5000.0,0.00018863,2]
[402814016,1768918247535,-1361.70772757,0.000189,2]
[402814017,1768918247545,-303.10001603,0.000189,2]
[402814018,1768918247556,-303.10001603,0.000189,2]
[402814019,1768918247566,-160.0,0.00019,4]
[402814020,1768918247575,-160.97220368,0.00019,5]
[402814021,1768918247585,-229.0,0.00019014,3]
[402814022,1768918247594,-475.2,0.00019029,2]
[402814023,1768918247605,-303.10001603,0.00019089,2]
[402814024,1768918247615,-303.10001603,0.00019089,2]
[402814025,1768918247625,-1361.70772757,0.000191,2]
[402814026,1768918247635,-2982.60894464,0.0001914,2]
[402814027,1768918247645,-200.0,0.00019154,2]
[402814028,1768918247654,-507.6079,0.00019178,2]
[402814029,1768918247664,-507.6079,0.00019178,2]
[402814030,1768918247673,-507.6079,0.00019178,2]
[402814031,1768918247683,-200.0,0.00019178,2]
[402814032,1768918247693,-507.6079,0.00019178,2]
[402814033,1768918247703,-507.6079,0.00019178,2]
[402814034,1768918247712,-507.6079,0.00019178,2]
[402814035,1768918247722,-507.6079,0.00019178,2]
[402814036,1768918247732,-507.6079,0.00019178,2]
[402814037,1768918247741,-507.6079,0.00019178,2]
[402814038,1768918247751,-507.6079,0.00019178,2]
[402814039,1768918247761,-507.6079,0.00019178,2]
[402814040,1768918247771,-351.67,0.00019178,2]
[402814041,1768918247780,-507.6079,0.00019178,2]
[402814042,1768918247790,-507.6079,0.00019178,2]
[402814043,1768918247800,-1585.455564,0.00019178,2]
[402814044,1768918247810,-1585.455564,0.00019178,2]
[402814045,1768918247820,-1585.455564,0.00019178,2]
[402814046,1768918247830,-1585.455564,0.00019178,2]
[402814047,1768918247840,-5500.0,0.00019178,2]
[402814048,1768918247850,-349.28,0.000192,2]
[402814049,1768918247860,-7026.69,0.000192,2]
[402814050,1768918247870,-373.2,0.000192,2]
[402814051,1768918247879,-39601.47,0.000192,2]
[402814052,1768918247889,-167.89,0.000192,2]
[402814053,1768918247900,-2000.0,0.00019264,7]
[402814054,1768918247910,-303.10001603,0.00019278,2]
[402814055,1768918247920,-303.10001603,0.00019278,2]
[402814056,1768918247930,-1361.70772757,0.000193,2]
[402814057,1768918247940,-151.0,0.00019317,2]
[402814058,1768918247950,-151.0,0.00019317,2]
[402814059,1768918247959,-151.0,0.00019317,2]
[402814060,1768918247968,-151.0,0.00019317,2]
[402814061,1768918247978,-151.0,0.00019317,2]
[402814062,1768918247988,-151.0,0.00019317,2]
[402814063,1768918247998,-151.0,0.00019317,2]
[402814064,1768918248007,-151.0,0.00019317,2]
[402814065,1768918248017,-151.0,0.00019317,2]
[402814066,1768918248028,-151.0,0.00019317,2]
[402814067,1768918248038,-1061.592791,0.00019317,2]
[402814068,1768918248048,-1061.592791,0.00019317,2]
[402814069,1768918248059,-1061.592791,0.00019317,2]
[402814070,1768918248069,-1061.592791,0.00019317,2]
[402814071,1768918248079,-1585.455564,0.00019317,2]
[402814072,1768918248089,-1585.455564,0.00019317,2]
[402814073,1768918248098,-1585.455564,0.00019317,2]
[402814074,1768918248107,-1585.455564,0.00019317,2]
[402814075,1768918248117,-151.0,0.00019317,2]
[402814076,1768918248126,-182.576717,0.00019317,2]
[402814077,1768918248135,-216.77021,0.00019317,2]
[402814078,1768918248145,-151.0,0.00019317,2]
[402814079,1768918248154,-151.0,0.00019317,2]
[402814080,1768918248165,-151.0,0.00019317,2]
[402814081,1768918248174,-269.922067,0.00019317,2]
[402814082,1768918248184,-151.0,0.00019317,2]
[402814083,1768918248193,-269.922067,0.00019317,2]
[402814084,1768918248202,-269.922067,0.00019317,2]
[402814085,1768918248212,-269.922067,0.00019317,2]
[402814086,1768918248221,-836.146172,0.00019317,2]
[402814087,1768918248232,-836.146172,0.00019317,2]
[402814088,1768918248243,-836.146172,0.00019317,2]
[402814089,1768918248253,-836.146172,0.00019317,2]
[402814090,1768918248263,-277.673685,0.00019317,2]
[402814091,1768918248272,-277.673685,0.00019317,2]
[402814092,1768918248281,-277.673685,0.00019317,2]
[402814093,1768918248291,-277.673685,0.00019317,2]
[402814094,1768918248300,-151.0,0.00019317,2]
[402814095,1768918248310,-152.114725,0.00019317,2]
[402814096,1768918248319,-151.0,0.00019317,2]
[402814097,1768918248329,-151.0,0.00019317,2]
[402814098,1768918248338,-151.192897,0.00019317,2]
[402814099,1768918248348,-8964.69750542,0.00019317,2]
[402814100,1768918248357,-5000.0,0.00019317,2]
[402814101,1768918248367,-5000.0,0.00019317,2]
[402814102,1768918248376,-5000.0,0.00019317,2]
[402814103,1768918248386,-5000.0,0.00019317,2]
[402814104,1768918248395,-475.2,0.00019352,2]
[402814105,1768918248405,-9903.14752856,0.0001937,2]
[402814106,1768918248414,-159.17,0.000194,2]
[402814107,1768918248424,-1191.41601096,0.00019452,2]
[402814108,1768918248433,-4765.66404386,0.00019452,2]
[402814109,1768918248443,-727.70166425,0.00019452,2]
[402814110,1768918248453,-580.45917371,0.00019452,2]
[402814111,1768918248464,-2321.83669483,0.00019452,2]
[402814112,1768918248474,-5224.13256336,0.00019452,2]
[402814113,1768918248484,-672.41881375,0.00019452,2]
[402814114,1768918248493,-303.10001603,0.00019467,2]
[402814115,1768918248503,-303.10001603,0.00019467,2]
[402814116,1768918248513,-1361.70772757,0.000195,2]
[402814117,1768918248523,-463.08675372,0.0001955,2]
[402814118,1768918248534,-1334.61496379,0.000196,2]
[402814119,1768918248544,-844.9206298,0.00019639,2]
[402814120,1768918248555,-57816.7881047,0.00019639,2]
[402814121,1768918248566,-151.0,0.00019639,2]
[402814122,1768918248575,-151.0,0.00019639,2]
[402814123,1768918248585,-156.307376,0.00019639,2]
[402814124,1768918248595,-157.526267,0.00019639,2]
[402814125,1768918248605,-151.0,0.00019639,2]
[402814126,1768918248614,-151.0,0.00019639,2]
[402814127,1768918248624,-151.0,0.00019639,2]
[402814128,1768918248636,-151.0,0.00019639,2]
[402814129,1768918248646,-151.0,0.00019639,2]
[402814130,1768918248798,-151.0,0.00019639,2]
[402814131,1768918248808,-197.021809,0.00019639,2]
[402814132,1768918248818,-185.739525,0.00019639,2]
[402814133,1768918248828,-151.0,0.00019639,2]
[402814134,1768918248837,-153.653338,0.00019639,2]
[402814135,1768918248847,-151.0,0.00019639,2]
[402814136,1768918248857,-151.0,0.00019639,2]
[402814137,1768918248866,-227.928786,0.00019639,2]
[402814138,1768918248876,-151.0,0.00019639,2]
[402814139,1768918248886,-151.0,0.00019639,2]
[402814140,1768918248896,-151.0,0.00019639,2]
[402814141,1768918248905,-151.0,0.00019639,2]
[402814142,1768918248916,-155.948363,0.00019639,2]
[402814143,1768918248926,-155.948363,0.00019639,2]
[402814144,1768918248935,-155.948363,0.00019639,2]
[402814145,1768918248945,-155.948363,0.00019639,2]
[402814146,1768918248955,-151.0,0.00019639,2]
[402814147,1768918248965,-151.0,0.00019639,2]
[402814148,1768918248974,-151.0,0.00019639,2]
[402814149,1768918248983,-151.0,0.00019639,2]
[402814150,1768918248992,-573.268169,0.00019639,2]
[402814151,1768918249002,-187.710619,0.00019639,2]
[402814152,1768918249011,-573.268169,0.00019639,2]
[402814153,1768918249021,-573.268169,0.00019639,2]
[402814154,1768918249031,-187.710619,0.00019639,2]
[402814155,1768918249040,-573.268169,0.00019639,2]
[402814156,1768918249050,-187.710619,0.00019639,2]
[402814157,1768918249060,-187.710619,0.00019639,2]
[402814158,1768918249069,-151.0,0.00019639,2]
[402814159,1768918249078,-151.0,0.00019639,2]
[402814160,1768918249088,-151.0,0.00019639,2]
[402814161,1768918249098,-151.0,0.00019639,2]
[402814162,1768918249107,-932.254814,0.00019639,2]
[402814163,1768918249116,-932.254814,0.00019639,2]
[402814164,1768918249126,-932.254814,0.00019639,2]
[402814165,1768918249136,-932.254814,0.00019639,2]
[402814166,1768918249145,-159.081671,0.00019639,2]
[402814167,1768918249155,-151.542111,0.00019639,2]
[402814168,1768918249166,-151.542111,0.00019639,2]
[402814169,1768918249177,-151.542111,0.00019639,2]
[402814170,1768918249187,-151.542111,0.00019639,2]
[402814171,1768918249198,-648.072103,0.00019639,2]
[402814172,1768918249209,-648.072103,0.00019639,2]
[402814173,1768918249220,-648.072103,0.00019639,2]
[402814174,1768918249230,-648.072103,0.00019639,2]
[402814175,1768918249241,-303.10001603,0.00019656,2]
[402814176,1768918249253,-303.10001603,0.00019656,2]
[402814177,1768918249263,-475.2,0.00019676,2]
[402814178,1768918249273,-151.0,0.00019686,2]
[402814179,1768918249283,-3092.96547559,0.00019688,2]
[402814180,1768918249294,-1361.70772757,0.000197,2]
[402814181,1768918249304,-3759.53,0.000197,3]
[402814182,1768918249313,-500.0,0.00019726,2]
[402814183,1768918249323,-150.32930833,0.00019726,2]
[402814184,1768918249332,-500.0,0.00019726,2]
[402814185,1768918249341,-500.0,0.00019726,2]
[402814186,1768918249351,-500.0,0.00019726,2]
[402814187,1768918249361,-500.0,0.00019726,2]
[402814188,1768918249370,-500.0,0.00019726,2]
[402814189,1768918249380,-150.09922003,0.00019726,2]
[402814190,1768918249395,-800.0,0.00019732,2]
[402814191,1768918249406,-800.0,0.00019801,2]
[402814192,1768918249415,-1908.5961251,0.00019834,2]
[402814193,1768918249435,-800.0,0.00019836,2]
[402814194,1768918249445,-1518.366042,0.0001984,5]
[402814195,1768918249455,-882.34,0.00019844,4]
[402814196,1768918249464,-454.65002405,0.00019845,4]
[402814197,1768918249474,-454.65002405,0.00019845,4]